fUSD/lending_fUSD_20241123
["ID","MTS","AMOUNT","RATE_DAILY","PERIOD"]
[343135058,1732377049693,-150.0,0.00055758,120]
[343135059,1732377049703,-150.0,0.00055785,120]
[343135060,1732377049712,-150.0,0.00055786,14]
[343135061,1732377049722,-1611.0,0.000558,20]
[343135062,1732377049734,-159.0,0.00055807,2]
[343135063,1732377049743,-632.0,0.00055807,120]
[343135064,1732377049753,-564.0,0.00055807,120]
[343135065,1732377049763,-1257.0,0.00055807,120]
[343135066,1732377049774,-629.0,0.00055807,120]
[343135067,1732377049784,-150.0,0.00055807,120]
[343135068,1732377049793,-1996.0,0.00055807,120]
[343135069,1732377049803,-561.0,0.00055807,120]
[343135070,1732377049812,-1928.0,0.00055807,120]
[343135071,1732377049822,-1261.0,0.00055807,120]
[343135072,1732377049831,-3750.0,0.00055807,120]
[343135073,1732377049841,-815.0,0.00055807,2]
[343135074,1732377049851,-918.0,0.00055807,120]
[343135075,1732377049861,-3517.0,0.00055807,120]
[343135076,1732377049870,-5944.0,0.00055807,120]
[343135077,1732377049880,-150.0,0.00055807,2]
[343135078,1732377049890,-1162.0,0.00055807,120]
[343135079,1732377049901,-150.0,0.00055807,120]
[343135080,1732377050029,-13666.0,0.00055807,120]
[343135081,1732377050043,-150.0,0.00055812,120]
[343135082,1732377050053,-150.0,0.00055839,120]
[343135083,1732377050063,-591.89,0.00055853,120]
[343135084,1732377050072,-591.89,0.00055853,120]
[343135085,1732377050083,-725.72,0.00055856,60]
[343135086,1732377050092,-300.0,0.00055856,60]
[343135087,1732377050101,-300.0,0.00055856,60]
[343135088,1732377050111,-433.75,0.00055856,60]
[343135089,1732377050121,-150.0,0.00055856,60]
[343135090,1732377050131,-150.0,0.00055856,60]
[343135091,1732377050140,-150.0,0.00055856,60]
[343135092,1732377050149,-433.75,0.00055856,60]
[343135093,1732377050159,-433.75,0.00055856,60]
[343135094,1732377050168,-371.22,0.00055856,60]
[343135095,1732377050177,-150.0,0.00055856,60]
[343135096,1732377050187,-362.86,0.00055856,60]
[343135097,1732377050196,-432.9,0.00055856,60]
[343135098,1732377050205,-357.15,0.00055856,60]
[343135099,1732377050215,-150.0,0.00055865,14]
[343135100,1732377050225,-150.0,0.00055866,120]
[343135101,1732377050238,-150.0,0.00055881,14]
[343135102,1732377050248,-150.0,0.00055883,14]
[343135103,1732377050258,-520.29,0.00055889,120]
[343135104,1732377050268,-500.0,0.00055889,120]
[343135105,1732377050279,-500.0,0.00055889,120]
[343135106,1732377050288,-500.0,0.00055889,120]
[343135107,1732377050298,-500.0,0.00055889,120]
[343135108,1732377050307,-500.0,0.00055889,120]
[343135109,1732377050317,-500.0,0.00055889,120]
[343135110,1732377050327,-475.92,0.00055889,120]
[343135111,1732377050337,-837.83,0.00055889,120]
[343135112,1732377050347,-500.0,0.00055889,120]
[343135113,1732377050356,-824.88,0.00055889,120]
[343135114,1732377050365,-585.26,0.00055889,120]
[343135115,1732377050375,-500.0,0.00055889,120]
[343135116,1732377050385,-500.0,0.00055889,120]
[343135117,1732377050394,-500.0,0.00055889,120]
[343135118,1732377050404,-500.0,0.00055889,120]
[343135119,1732377050414,-500.0,0.00055889,120]
[343135120,1732377050423,-500.0,0.00055889,120]
[343135121,1732377050432,-500.0,0.00055889,120]
[343135122,1732377050442,-500.0,0.00055889,120]
[343135123,1732377050451,-500.0,0.00055889,120]
[343135124,1732377050461,-500.0,0.00055889,120]
[343135125,1732377050470,-500.0,0.00055889,120]
[343135126,1732377050483,-240.17269191,0.00055889,120]
[343135127,1732377050492,-500.0,0.00055889,120]
[343135128,1732377050502,-500.0,0.00055889,120]
[343135129,1732377050512,-500.0,0.00055889,120]
[343135130,1732377050526,-500.0,0.00055889,120]
[343135131,1732377050536,-500.0,0.00055889,120]
[343135132,1732377050546,-413.53,0.00055889,120]
[343135133,1732377050555,-500.0,0.00055889,120]
[343135134,1732377050564,-300.17092939,0.00055889,120]
[343135135,1732377050574,-500.0,0.00055889,120]
[343135136,1732377050583,-1524.05,0.00055889,54]
[343135137,1732377050592,-500.0,0.00055889,120]
[343135138,1732377050602,-500.0,0.00055889,7]
[343135139,1732377050611,-500.0,0.00055889,120]
[343135140,1732377050621,-500.0,0.00055889,120]
[343135141,1732377050630,-500.0,0.00055889,120]
[343135142,1732377050640,-500.0,0.00055889,120]
[343135143,1732377050649,-500.0,0.00055889,7]
[343135144,1732377050658,-1001.64,0.00055889,120]
[343135145,1732377050668,-500.0,0.00055889,120]
[343135146,1732377050677,-711.05,0.00055889,120]
[343135147,1732377050687,-500.0,0.00055889,120]
[343135148,1732377050696,-500.0,0.00055889,120]
[343135149,1732377050706,-305.5162236,0.00055889,120]
[343135150,1732377050715,-628.27,0.00055889,120]
[343135151,1732377050724,-469.3683078,0.00055889,120]
[343135152,1732377050737,-500.0,0.00055889,120]
[343135153,1732377050746,-1295.74,0.00055889,120]
[343135154,1732377050756,-1517.3,0.00055889,120]
[343135155,1732377050765,-500.0,0.00055889,120]
[343135156,1732377050774,-650.15,0.00055889,120]
[343135157,1732377050784,-500.0,0.00055889,120]
[343135158,1732377050793,-1391.84,0.00055889,120]
[343135159,1732377050804,-2074.23,0.00055889,120]
[343135160,1732377050813,-1632.04,0.00055889,120]
[343135161,1732377050823,-567.77786558,0.00055889,120]
[343135162,1732377050832,-500.0,0.00055889,120]
[343135163,1732377050842,-500.0,0.00055889,120]
[343135164,1732377050852,-500.0,0.00055889,120]
[343135165,1732377050861,-500.0,0.00055889,120]
[343135166,1732377050870,-597.4,0.00055889,120]
[343135167,1732377050879,-1478.23,0.00055889,120]
[343135168,1732377050889,-500.0,0.00055889,120]
[343135169,1732377050898,-500.0,0.00055889,120]
[343135170,1732377050907,-500.0,0.00055889,120]
[343135171,1732377050916,-500.0,0.00055889,120]
[343135172,1732377050926,-1562.08,0.00055889,120]
[343135173,1732377050935,-500.0,0.00055889,120]
[343135174,1732377050944,-500.0,0.00055889,120]
[343135175,1732377050954,-500.0,0.00055889,120]
[343135176,1732377050963,-582.21,0.00055889,120]
[343135177,1732377050972,-500.0,0.00055889,120]
[343135178,1732377050983,-173.60008278,0.00055889,120]
[343135179,1732377050992,-500.0,0.00055889,120]
[343135180,1732377051002,-1590.61,0.00055889,120]
[343135181,1732377051011,-509.35,0.00055889,120]
[343135182,1732377051021,-500.0,0.00055889,120]
[343135183,1732377051031,-1471.15,0.00055889,120]
[343135184,1732377051040,-1114.52,0.00055889,120]
[343135185,1732377051052,-1731.95,0.00055889,30]
[343135186,1732377051062,-500.0,0.00055889,120]
[343135187,1732377051072,-444.74,0.00055889,120]
[343135188,1732377051081,-500.0,0.00055889,120]
[343135189,1732377051091,-500.0,0.00055889,120]
[343135190,1732377051100,-500.0,0.00055889,120]
[343135191,1732377051109,-500.0,0.00055889,120]
[343135192,1732377051119,-500.0,0.00055889,120]
[343135193,1732377051132,-520.83,0.00055889,120]
[343135194,1732377051141,-500.0,0.00055889,120]
[343135195,1732377051150,-500.0,0.00055889,120]
[343135196,1732377051160,-500.0,0.00055889,120]
[343135197,1732377051169,-500.0,0.00055889,120]
[343135198,1732377051178,-500.0,0.00055889,120]
[343135199,1732377051187,-500.0,0.00055889,120]
[343135200,1732377051196,-500.0,0.00055889,120]
[343135201,1732377051206,-533.15002734,0.00055889,120]
[343135202,1732377051216,-1744.78,0.00055889,120]
[343135203,1732377051226,-636.24,0.00055889,120]
[343135204,1732377051241,-500.0,0.00055889,120]
[343135205,1732377051251,-1588.17,0.00055889,120]
[343135206,1732377051260,-500.0,0.00055889,120]
[343135207,1732377051270,-500.0,0.00055889,120]
[343135208,1732377051280,-500.0,0.00055889,120]
[343135209,1732377051290,-1601.12,0.00055889,120]
[343135210,1732377051299,-500.0,0.00055889,120]
[343135211,1732377051308,-500.0,0.00055889,120]
[343135212,1732377051318,-500.0,0.0005589,120]
[343135213,1732377051328,-559.66,0.0005589,120]
[343135214,1732377051337,-528.69,0.0005589,120]
[343135215,1732377051347,-500.0,0.0005589,120]
[343135216,1732377051356,-360.55526533,0.0005589,120]
[343135217,1732377051366,-500.0,0.0005589,120]
[343135218,1732377051376,-500.0,0.0005589,120]
[343135219,1732377051385,-533.88,0.0005589,120]
[343135220,1732377051395,-500.0,0.0005589,120]
[343135221,1732377051406,-500.0,0.0005589,120]
[343135222,1732377051415,-500.0,0.0005589,120]
[343135223,1732377051425,-500.0,0.0005589,120]
[343135224,1732377051435,-881.31,0.0005589,120]
[343135225,1732377051444,-596.11,0.0005589,120]
[343135226,1732377051454,-500.0,0.0005589,120]
[343135227,1732377051464,-1422.09,0.0005589,120]
[343135228,1732377051473,-1420.56,0.0005589,120]
[343135229,1732377051485,-543.33,0.0005589,120]
[343135230,1732377051494,-500.0,0.0005589,120]
[343135231,1732377051504,-500.0,0.0005589,120]
[343135232,1732377051514,-500.0,0.0005589,120]
[343135233,1732377051523,-1141.5,0.0005589,120]
[343135234,1732377051533,-500.0,0.0005589,120]
[343135235,1732377051543,-500.0,0.0005589,120]
[343135236,1732377051553,-1381.04,0.0005589,120]
[343135237,1732377051562,-1685.92,0.0005589,120]
[343135238,1732377051572,-2122.09,0.0005589,120]
[343135239,1732377051582,-500.0,0.0005589,120]
[343135240,1732377051591,-500.0,0.0005589,120]
[343135241,1732377051601,-895.95,0.0005589,120]
[343135242,1732377051611,-1052.74,0.0005589,120]
[343135243,1732377051621,-500.0,0.0005589,120]
[343135244,1732377051630,-2944.91,0.0005589,120]
[343135245,1732377051640,-492.36880116,0.0005589,120]
[343135246,1732377051651,-500.0,0.0005589,120]
[343135247,1732377051660,-500.0,0.0005589,2]
[343135248,1732377051670,-500.0,0.0005589,120]
[343135249,1732377051679,-275.34,0.0005589,120]
[343135250,1732377051689,-821.09,0.0005589,120]
[343135251,1732377051698,-541.73,0.0005589,120]
[343135252,1732377051708,-1028.41,0.0005589,120]
[343135253,1732377051718,-500.0,0.0005589,120]
[343135254,1732377051730,-500.0,0.0005589,120]
[343135255,1732377051740,-630.15,0.0005589,120]
[343135256,1732377051750,-698.57,0.0005589,120]
[343135257,1732377051759,-1223.02,0.0005589,120]
[343135258,1732377051768,-500.0,0.0005589,120]
[343135259,1732377051778,-500.0,0.0005589,120]
[343135260,1732377051787,-1898.69,0.0005589,120]
[343135261,1732377051797,-500.0,0.0005589,120]
[343135262,1732377051806,-200.57,0.0005589,120]
[343135263,1732377051815,-500.0,0.0005589,120]
[343135264,1732377051825,-500.0,0.0005589,120]
[343135265,1732377051834,-500.0,0.0005589,120]
[343135266,1732377051843,-500.0,0.0005589,120]
[343135267,1732377051852,-500.0,0.0005589,120]
[343135268,1732377051862,-1000.0,0.0005589,120]
[343135269,1732377051871,-731.95,0.0005589,21]
[343135270,1732377051880,-500.0,0.0005589,120]
[343135271,1732377051889,-1847.28,0.0005589,120]
[343135272,1732377051899,-1000.0,0.0005589,120]
[343135273,1732377051908,-500.0,0.0005589,120]
[343135274,1732377051918,-703.76,0.0005589,120]
[343135275,1732377051927,-1180.28,0.0005589,120]
[343135276,1732377051940,-500.0,0.0005589,120]
[343135277,1732377051950,-2028.13,0.0005589,120]
[343135278,1732377051960,-500.0,0.0005589,120]
[343135279,1732377051969,-500.0,0.0005589,120]
[343135280,1732377051981,-571.55,0.0005589,120]
[343135281,1732377051991,-500.0,0.0005589,120]
[343135282,1732377052001,-500.0,0.0005589,120]
[343135283,1732377052011,-500.0,0.0005589,120]
[343135284,1732377052020,-500.0,0.0005589,120]
[343135285,1732377052031,-276.63080223,0.0005589,120]
[343135286,1732377052044,-500.0,0.0005589,120]
[343135287,1732377052054,-500.0,0.0005589,120]
[343135288,1732377052063,-500.0,0.0005589,120]
[343135289,1732377052073,-500.0,0.0005589,120]
[343135290,1732377052083,-500.0,0.0005589,120]
[343135291,1732377052092,-932.28,0.0005589,120]
[343135292,1732377052101,-500.0,0.0005589,120]
[343135293,1732377052111,-815.71,0.0005589,120]
[343135294,1732377052120,-509.17325008,0.0005589,120]
[343135295,1732377052130,-500.0,0.0005589,120]
[343135296,1732377052140,-500.0,0.0005589,120]
[343135297,1732377052150,-500.0,0.0005589,120]
[343135298,1732377052159,-500.0,0.0005589,120]
[343135299,1732377052169,-500.0,0.0005589,120]
[343135300,1732377052179,-458.77792642,0.0005589,120]
[343135301,1732377052189,-500.0,0.0005589,120]
[343135302,1732377052198,-500.0,0.0005589,120]
[343135303,1732377052207,-500.0,0.0005589,120]
[343135304,1732377052218,-500.0,0.0005589,120]
[343135305,1732377052227,-500.0,0.0005589,120]
[343135306,1732377052239,-500.0,0.0005589,120]
[343135307,1732377052249,-500.0,0.0005589,120]
[343135308,1732377052258,-500.0,0.0005589,120]
[343135309,1732377052268,-500.0,0.0005589,120]
[343135310,1732377052277,-500.0,0.0005589,120]
[343135311,1732377052286,-500.0,0.0005589,120]
[343135312,1732377052296,-506.73,0.0005589,120]
[343135313,1732377052415,-592.48,0.0005589,120]
[343135314,1732377052425,-500.0,0.0005589,120]
[343135315,1732377052434,-500.0,0.0005589,120]
[343135316,1732377052444,-500.0,0.0005589,120]
[343135317,1732377052453,-500.0,0.0005589,120]
[343135318,1732377052462,-500.0,0.0005589,120]
[343135319,1732377052471,-532.15117108,0.0005589,120]
[343135320,1732377052483,-500.0,0.0005589,120]
[343135321,1732377052493,-1811.53,0.0005589,120]
[343135322,1732377052503,-500.0,0.0005589,120]
[343135323,1732377052514,-500.0,0.0005589,120]
[343135324,1732377052524,-500.0,0.0005589,120]
[343135325,1732377052534,-500.0,0.0005589,120]
[343135326,1732377052544,-500.0,0.0005589,120]
[343135327,1732377052553,-500.0,0.0005589,120]
[343135328,1732377052562,-433.23638927,0.0005589,120]
[343135329,1732377052572,-500.0,0.0005589,120]
[343135330,1732377052583,-500.0,0.0005589,120]
[343135331,1732377052592,-650.97,0.0005589,120]
[343135332,1732377052602,-500.0,0.0005589,120]
[343135333,1732377052611,-500.0,0.0005589,120]
[343135334,1732377052621,-1427.96,0.0005589,120]
[343135335,1732377052630,-500.0,0.0005589,120]
[343135336,1732377052639,-500.0,0.0005589,120]
[343135337,1732377052648,-500.0,0.0005589,120]
[343135338,1732377052658,-500.0,0.0005589,120]
[343135339,1732377052667,-500.0,0.0005589,120]
[343135340,1732377052677,-569.52,0.0005589,120]
[343135341,1732377052687,-500.0,0.0005589,120]
[343135342,1732377052697,-500.0,0.0005589,120]
[343135343,1732377052707,-500.0,0.0005589,120]
[343135344,1732377052717,-612.87,0.0005589,120]
[343135345,1732377052728,-500.0,0.0005589,120]
[343135346,1732377052745,-500.0,0.0005589,120]
[343135347,1732377052755,-500.0,0.0005589,120]
[343135348,1732377052764,-500.0,0.0005589,120]
[343135349,1732377052774,-500.0,0.0005589,120]
[343135350,1732377052783,-500.0,0.0005589,120]
[343135351,1732377052793,-500.0,0.0005589,120]
[343135352,1732377052802,-500.0,0.0005589,120]
[343135353,1732377052812,-500.0,0.0005589,120]
[343135354,1732377052823,-500.0,0.0005589,120]
[343135355,1732377052833,-573.15,0.0005589,120]
[343135356,1732377052843,-500.0,0.0005589,120]
[343135357,1732377052853,-312.11168742,0.0005589,2]
[343135358,1732377052862,-500.0,0.0005589,120]
[343135359,1732377052872,-500.0,0.0005589,120]
[343135360,1732377052881,-500.0,0.0005589,120]
[343135361,1732377052891,-500.0,0.0005589,120]
[343135362,1732377052900,-500.0,0.0005589,120]
[343135363,1732377052909,-500.0,0.0005589,120]
[343135364,1732377052919,-500.0,0.0005589,120]
[343135365,1732377052929,-500.0,0.0005589,120]
[343135366,1732377052939,-500.0,0.0005589,120]
[343135367,1732377052948,-500.0,0.0005589,120]
[343135368,1732377052959,-500.0,0.0005589,120]
[343135369,1732377052969,-500.0,0.0005589,120]
[343135370,1732377052978,-766.97768715,0.0005589,2]
[343135371,1732377052989,-1747.05313457,0.0005589,15]
[343135372,1732377052998,-1387.28,0.0005589,120]
[343135373,1732377053008,-500.0,0.0005589,120]
[343135374,1732377053018,-500.0,0.0005589,120]
[343135375,1732377053028,-1412.34,0.0005589,120]
[343135376,1732377053038,-352.17296597,0.0005589,120]
[343135377,1732377053048,-1299.9,0.0005589,120]
[343135378,1732377053060,-304.45,0.0005589,120]
[343135379,1732377053070,-9551.21804172,0.0005589,2]
[343135380,1732377053079,-517.64,0.0005589,120]
[343135381,1732377053089,-500.0,0.0005589,120]
[343135382,1732377053100,-164.3643465,0.0005589,120]
[343135383,1732377053110,-500.0,0.0005589,120]
[343135384,1732377053120,-500.0,0.0005589,120]
[343135385,1732377053131,-500.0,0.0005589,120]
[343135386,1732377053142,-520.22,0.0005589,120]
[343135387,1732377053151,-2284.99,0.0005589,120]
[343135388,1732377053161,-4588.54,0.0005589,120]
[343135389,1732377053170,-500.0,0.0005589,120]
[343135390,1732377053180,-7240.22610232,0.0005589,30]
[343135391,1732377053190,-729.37,0.0005589,120]
[343135392,1732377053199,-500.0,0.0005589,120]
[343135393,1732377053209,-500.0,0.0005589,120]
[343135394,1732377053219,-333.0,0.0005589,120]
[343135395,1732377053231,-599.32,0.0005589,120]
[343135396,1732377053241,-500.0,0.0005589,120]
[343135397,1732377053251,-500.0,0.0005589,120]
[343135398,1732377053261,-500.0,0.0005589,120]
[343135399,1732377053271,-2261.96,0.0005589,120]
[343135400,1732377053281,-708.61,0.0005589,120]
[343135401,1732377053291,-500.0,0.0005589,120]
[343135402,1732377053300,-500.0,0.0005589,120]
[343135403,1732377053310,-267.17260741,0.0005589,120]
[343135404,1732377053320,-500.0,0.0005589,120]
[343135405,1732377053329,-1471.71,0.0005589,120]
[343135406,1732377053339,-299.77716584,0.0005589,120]
[343135407,1732377053349,-151.0,0.0005589,120]
[343135408,1732377053359,-500.0,0.0005589,120]
[343135409,1732377053368,-500.0,0.0005589,2]
[343135410,1732377053378,-500.0,0.0005589,120]
[343135411,1732377053387,-1202.3,0.0005589,120]
[343135412,1732377053398,-1491.5,0.0005589,120]
[343135413,1732377053407,-768.5,0.0005589,120]
[343135414,1732377053416,-500.0,0.0005589,120]
[343135415,1732377053426,-354.5,0.0005589,120]
[343135416,1732377053436,-500.0,0.0005589,120]
[343135417,1732377053445,-500.0,0.0005589,120]
[343135418,1732377053456,-1032.47,0.0005589,120]
[343135419,1732377053466,-571.78,0.0005589,120]
[343135420,1732377053475,-500.0,0.0005589,120]
[343135421,1732377053488,-585.26,0.00055892,120]
[343135422,1732377053499,-150.0,0.00055892,120]
[343135423,1732377053508,-336.57832002,0.00055893,120]
[343135424,1732377053518,-6906.32966229,0.00055893,15]
[343135425,1732377053529,-466.48533846,0.00055893,28]
[343135426,1732377053539,-566.62808031,0.00055893,27]
[343135427,1732377053550,-5800.0,0.000559,14]
[343135428,1732377053559,-150.0,0.00055915,14]
[343135429,1732377053569,-150.0,0.00055919,14]
[343135430,1732377053579,-150.0,0.00055919,120]
[343135431,1732377053589,-150.0,0.00055927,14]
[343135432,1732377053599,-150.5,0.00055933,30]
[343135433,1732377053610,-150.5,0.00055943,30]
[343135434,1732377053619,-277.9,0.00055943,120]
[343135435,1732377053630,-2959.0,0.00055945,120]
[343135436,1732377053640,-150.0,0.00055946,120]
[343135437,1732377053650,-189.4,0.00055947,120]
[343135438,1732377053660,-288.98,0.00055947,120]
[343135439,1732377053670,-150.5,0.00055947,120]
[343135440,1732377053680,-150.5,0.00055953,120]
[343135441,1732377053691,-300.21,0.00055953,120]
[343135442,1732377053701,-150.5,0.00055954,30]
[343135443,1732377053710,-150.5,0.00055957,120]
[343135444,1732377053720,-150.5,0.00055957,120]
[343135445,1732377053731,-150.5,0.00055957,120]
[343135446,1732377053740,-154.17,0.0005596,120]
[343135447,1732377053751,-2000.0,0.0005596,120]
[343135448,1732377053761,-13084.2661967,0.00055963,120]
[343135449,1732377053770,-150.0,0.00055963,14]
[343135450,1732377053780,-585.26,0.00055964,120]
[343135451,1732377053790,-166.08,0.00055966,30]
[343135452,1732377053799,-150.5,0.00055967,120]
[343135453,1732377053809,-150.5,0.00055967,120]
[343135454,1732377053820,-150.5,0.00055967,120]
[343135455,1732377053829,-150.5,0.0005597,120]
[343135456,1732377053839,-1627.15878787,0.0005597,120]
[343135457,1732377053849,-292.89937195,0.00055973,120]
[343135458,1732377053858,-585.26,0.00055976,120]
[343135459,1732377053868,-585.26,0.00055976,120]
[343135460,1732377053878,-585.26,0.00055976,120]
[343135461,1732377053887,-585.26,0.00055976,120]
[343135462,1732377053901,-585.26,0.00055976,120]
[343135463,1732377053911,-585.27400717,0.00055976,120]
[343135464,1732377053921,-299131.58914418,0.00055977,7]
[343135465,1732377053931,-200.0,0.00055977,15]
[343135466,1732377053941,-200.0,0.00055977,15]
[343135467,1732377053951,-213.45747163,0.00055979,7]
[343135468,1732377053961,-23231.18336607,0.00055985,7]
[343135469,1732377053970,-150.0,0.00055986,14]
[343135470,1732377053983,-962.58744864,0.00055989,120]
[343135471,1732377053993,-1993.17655217,0.00055989,120]
[343135472,1732377054002,-156717.75773513,0.00055989,7]
[343135473,1732377054013,-151.0,0.00055989,120]
[343135474,1732377054023,-2980.58775526,0.00055989,60]
[343135475,1732377054037,-6202.3963081,0.0005599,120]
[343135476,1732377054049,-81625645.27624176,0.0005599,60]
[343135477,1732377054275,-282.80999925,0.0005599,60]
[343135478,1732377054286,-935.96083,0.0005599,60]
[343135479,1732377054409,-1792.54968,0.0005599,60]
[343135480,1732377054535,-500.0,0.00054794,120]
[343135481,1732377054545,-18778.35200913,0.0005599,60]
[343135482,1732377054804,-500.0,0.00054794,120]
[343135483,1732377054814,-500.0,0.00054794,120]
[343135484,1732377054823,-500.0,0.00054794,120]
[343135485,1732377054833,-500.0,0.00055342,120]
[343135486,1732377054842,-4668.1026226,0.0005599,60]
[343135487,1732377054853,-74065.81001226,0.0005599,60]
[343135488,1732377055133,-349.53717031,0.00054136,2]
[343135489,1732377055144,-675.60039227,0.00054136,2]
[343135490,1732377070898,-862.8300004,0.00054136,2]
[343135491,1732377070910,-2166.37100881,0.00054136,2]
[343135492,1732377070940,-19845.66142821,0.00054136,2]
[343135493,1732377070950,-158.53,0.00054355,120]
[343135494,1732377070960,-500.0,0.00054794,120]
[343135495,1732377070970,-500.0,0.00054794,7]
[343135496,1732377070979,-399.76678933,0.00054794,120]
[343135497,1732377070992,-500.0,0.00054794,120]
[343135498,1732377071001,-502.10684856,0.00054794,120]
[343135499,1732377071011,-907.25526833,0.00054794,120]
[343135500,1732377071199,-389.20000135,0.00054794,120]
[343135501,1732377071211,-355.23473032,0.00054794,120]
[343135502,1732377071221,-500.0,0.00054794,120]
[343135503,1732377071231,-500.0,0.00054794,120]
[343135504,1732377071245,-500.0,0.00054794,120]
[343135505,1732377071255,-389.56526968,0.00055341,120]
[343135506,1732377071267,-110.43473032,0.00055341,120]
[343135507,1732377071276,-500.0,0.00055342,120]
[343135508,1732377071285,-435.74637336,0.00055342,120]
[343135509,1732377071294,-500.0,0.00055342,7]
[343135510,1732377071303,-11.46414883,0.00055342,120]
[343135511,1732377071315,-488.53585117,0.00055342,120]
[343135512,1732377071325,-1651.69,0.00055342,120]
[343135513,1732377071335,-500.0,0.00055342,120]
[343135514,1732377071344,-500.0,0.00055342,120]
[343135515,1732377071354,-1094.0,0.00055807,120]
[343135516,1732377071363,-500.0,0.00055889,120]
[343135517,1732377071373,-500.0,0.0005589,120]
[343135518,1732377071383,-500.0,0.0005589,120]
[343135519,1732377071394,-1651.69,0.0005589,120]
[343135520,1732377071404,-500.0,0.0005589,120]
[343135521,1732377071413,-500.0,0.0005589,120]
[343135522,1732377071423,-1447.03414883,0.0005599,60]
[343135523,1732377071460,-1126.3,0.00055341,120]
[343135524,1732377071476,-330.81,0.00055341,120]
[343135525,1732377071486,-500.0,0.00055342,120]
[343135526,1732377071502,-19881.60999952,0.0005599,60]
[343135527,1732377072079,263.8556,0.000486,2]
[343135528,1732377072946,190.5561628,0.00048573,10]
[343135529,1732377072986,8458.0,0.0005,2]
[343135530,1732377073029,1087.5882372,0.0005,2]
[343135531,1732377074044,286.2085,0.000352,2]
[343135532,1732377127734,150.0,0.000409,120]
[343135533,1732377127755,150.0,0.000409,120]
[343135534,1732377127779,150.0,0.000409,120]
[343135535,1732377127800,150.0,0.000409,120]
[343135536,1732377127820,150.0,0.000409,120]
[343135537,1732377127844,422.8367,0.000409,120]
[343135538,1732377178875,183.48,0.00041096,2]
[343135539,1732377185208,150.0,0.00035,2]
[343135540,1732377185230,42.455,0.00035,2]
[343135541,1732377198412,150.0,0.000216,2]
[343135542,1732377198435,150.0,0.000216,2]
[343135543,1732377198457,139.0,0.000216,2]
[343135544,1732377199139,395.0,0.000216,2]
[343135545,1732377237633,150.0,0.00041096,2]
[343135546,1732377237657,90.79,0.00041096,2]
[343135548,1732377837222,59.21,0.00041,5]
[343135549,1732377837249,150.0,0.00041,5]
[343135550,1732377837283,150.0,0.00041,5]
[343135551,1732377837311,150.0,0.00041,5]
[343135552,1732377837336,150.0,0.00041,5]
[343135553,1732377837361,275.91401988,0.00041,5]
[343135554,1732377837386,8996.5218366,0.00041,5]
[343135555,1732377976545,235.9,0.00041096,2]
[343135556,1732377980127,173.0,0.00037304,2]
[343135599,1732378156170,183.48,0.00041096,2]
[343135612,1732378231987,-192.455,0.00042067,2]